Cogmind - Beta 16.1 @@@ ROGUE MODE // 2026.03.01 @ 20:18:51 Player: Mercey Result: Destroyed by 4L-869(R) with Subdweller Machine Gun Performance ------------- Evolutions (0) 0 Regions Visited (2) 400 Robots Destroyed (8) 40 Value Destroyed (215) 215 Prototype IDs (0) 0 Alien Tech Used (0) 0 Bonus (0) 0 TOTAL SCORE: 655 Bonus ------- None Cogmind --------- Core Integrity 0/250 Matter 300/300 Energy 196/200 System Corruption 3% Temperature Cool (2) Movement Treading (160) Location -10/Subcaves Parts ------- > --- POWER (1) -------- Subdweller Power Source > --- PROPULSION (2) --- Light Treads Light Treads > --- UTILITY (2) ------ Small Storage Unit Subdweller Optics > --- WEAPON (2) ------- Subdweller Laser > --- INVENTORY (8) ---- Ion Engine Light Ion Engine Aluminum Leg Subdweller Monowheel Huge Storage Unit Transport Network Coupler Mining Laser Scrap Shield Fragment (47) Peak State ------------ > --- POWER ------------ Subdweller Power Source > --- PROPULSION ------- Light Treads Light Treads > --- UTILITY ---------- Small Storage Unit Subdweller Optics > --- WEAPON ----------- Subdweller Laser > --- INVENTORY -------- Ion Engine Light Ion Engine Aluminum Leg Subdweller Monowheel Huge Storage Unit Transport Network Coupler Mining Laser Scrap Shield Fragment [Rating: 10] Favorites ----------- Power Ion Engine Engine Ion Engine Propulsion Aluminum Leg Treads Light Treads Leg Aluminum Leg Wheel Wheel Utility Small Storage Unit Device Seismic Detector Storage Small Storage Unit Weapon Assault Rifle Energy Gun EM Pulse Gun Ballistic Gun Assault Rifle Slashing Weapon Mining Claw Build | -11 -10 -10 ------- Run | Yrd Mat Sub Slots Evolved . | . . . Power . | . . . Propulsion . | . . . Utility . | . . . Weapon . | . . . Parts Attached 16 | 8 1 7 Power 2 | 1 . 1 Engine 2 | 1 . 1 Core . | . . . Reactor . | . . . Propulsion 6 | 2 . 4 Treads 2 | . . 2 Leg 2 | 2 . . Wheel 2 | . . 2 Hover . | . . . Flight . | . . . Utility 4 | 3 . 1 Device 3 | 2 . 1 Storage 1 | 1 . . Processor . | . . . Hackware . | . . . Protection . | . . . Artifact . | . . . Weapon 4 | 2 1 1 Energy Gun 2 | 1 . 1 Energy Cannon . | . . . Ballistic Gun 1 | 1 . . Ballistic Cannon . | . . . Launcher . | . . . Special Weapon . | . . . Impact Weapon . | . . . Slashing Weapon 1 | . 1 . Piercing Weapon . | . . . Special Melee Weapon . | . . . Unidentified Prototypes . | . . . Corrupted Parts 1 | . . 1 System Corruption 1 | . . 1 Parts Lost 6 | . . 6 Power . | . . . Propulsion 3 | . . 3 Utility 1 | . . 1 Weapon 2 | . . 2 Highest Loss Streak 6 | . . 6 To Critical Strikes . | . . . Average Backups 7 | 4 7 7 Power 1 | . 1 1 Propulsion 3 | 2 4 2 Utility 1 | . 1 2 Weapon . | . 1 1 Tool/Special . | . . . Unused Backups 5 | . 1 4 Power 1 | . . 1 Propulsion 1 | . . 1 Utility 1 | . . 1 Weapon 2 | . 1 1 Tool/Special . | . . . Average Slot Usage (%) 94 | . 100 87 Engine 14 | . 14 14 Treads 6 | . . 13 Leg 20 | . 28 11 Device 13 | . 14 12 Storage 14 | . 14 14 Energy Gun 13 | . 12 13 Ballistic Gun 10 | . 14 6 Peak Build Rating 10 | 9 8 10 Average Rating 7 | 5 7 7 On Entrance 4 | . 7 7 Avg Prop Armor Cover (%) . | . . . Naked Turns . | . . . Heaviest Build 16 | 15 15 16 Greatest Support 40 | 20 20 40 Greatest Overweight (x) 3 | 2 . 3 Average Overweight (x) . | . . . Largest Inventory Capacity 8 | 8 8 8 Average Capacity 7 | 7 8 8 Most Carried 8 | 8 8 8 Average Carried 7 | 4 7 7 Final Capacity 8 | 8 8 8 Final Carried 8 | 7 8 8 Class Distribution -------------------- 100% | Mutant Dominant Class ---------------- Mutant | -10/Materials Mutant | -10/Subcaves Resources | -11 -10 -10 ----------- Run | Yrd Mat Sub Matter Collected 452 | 274 81 97 Remotely . | . . . Salvage Created 247 | 18 126 103 Parts 15 | 2 8 5 Haulers Intercepted . | . . . Recyclers Shooed . | . . . Parts Field Recycled . | . . . Retrieved Matter . | . . . Parts Self-Destructed 1 | . . 1 Prevented . | . . . Parts Restored . | . . . Kills | -11 -10 -10 ------- Run | Yrd Mat Sub Combat Hostiles Destroyed 7 | . 5 2 Guns 6 | . 4 2 AOE 1 | . 1 . Classes Destroyed 4 | 1 2 1 Tunneler 1 | 1 . . Swarmer 3 | . 3 . Grunt 2 | . 2 . Subdweller 2 | . . 2 Best Kill Streak 4 | 1 4 1 Combat Bots Only 4 | . 4 1 Max Kills in Single Turn 1 | 1 1 1 Gunslinging . | . . . Exploded 1 | . 1 . Melee . | . . . Uniques/NPCs Destroyed . | . . . Combat | -11 -10 -10 -------- Run | Yrd Mat Sub Hostile Shots Fired 72 | . 39 33 Missed 20 | . 13 7 Hits 52 | . 26 26 Projectile 52 | . 26 26 Damage Taken 886 | . 234 652 Core 250 | . 51 199 Absorbed by Shields . | . . . Core Remaining (%) 100 | 100 . . Volleys Fired 41 | 10 14 17 Largest 2 | 2 2 2 Hottest 60 | 60 60 60 Shots Fired 68 | 11 28 29 Gun 68 | 11 28 29 Cannon . | . . . Launcher . | . . . Special . | . . . Kinetic 35 | 10 14 11 Thermal 8 | . . 8 Explosive . | . . . Electromagnetic 25 | 1 14 10 Robot Hit Streak 20 | 3 5 20 Robot Miss Streak 6 | 3 6 2 Penetration Max . | . . . Secondary Targets 1 | . 1 . Max Gunslinging Chain 1 | . 1 . Shots Hit Robots 40 | 6 11 23 Core Hits 12 | 1 7 4 Critical Kills . | . . . Critical Parts Destroyed . | . . . Critical Strikes . | . . . Melee Attacks 7 | . 7 . Impact . | . . . Slashing 7 | . 7 . Piercing . | . . . Sneak Attacks . | . . . Combat Hostiles . | . . . Follow-up Attacks . | . . . Damage Inflicted 677 | 82 252 343 Guns 596 | 78 175 343 Cannons . | . . . Explosions 77 | . 77 . Melee . | . . . Ramming 4 | 4 . . Kinetic 289 | 78 87 124 Thermal 228 | . 77 151 Explosive . | . . . Electromagnetic 156 | . 88 68 Impact . | . . . Slashing . | . . . Piercing . | . . . Highest Corruption 3 | . 2 3 Average Corruption 2 | . 2 2 Corruption Purged . | . . . Corruption Blocked . | . . . Effects 10 | . 2 8 Message Errors 4 | . 1 3 Matter Fused 2 | . 1 1 Data Loss (minor) 1 | . . 1 Data Loss (major) 1 | . . 1 Misfires 2 | . . 2 Overload Shots . | . . . Overflow Damage . | . . . Projectiles . | . . . Explosions . | . . . Melee . | . . . Knockbacks . | . . . Impact . | . . . Kinetic . | . . . Secondary . | . . . Self-Inflicted Damage . | . . . Shots . | . . . Rammed . | . . . Targets Rammed 2 | 2 . . Kicked 2 | 2 . . Crushed . | . . . Highest Temperature 24 | . 24 . Average Temperature 18 | . 18 . Received Heat Transfer 222 | . 42 180 Siege Activations . | . . . Martial Activations . | . . . Shielding Activations . | . . . Robots Disrupted . | . . . Combat Hostiles . | . . . Robots Corrupted . | . . . Combat Hostiles . | . . . Parts Fried . | . . . Impact Corruptions . | . . . Robots Melted . | . . . Combat Hostiles . | . . . Parts Melted 1 | . . 1 Heat Transferred 275 | . 100 175 Parts Sabotaged . | . . . Parts Stolen . | . . . Parts Stripped . | . . . Power Chain Reactions 1 | . 1 . Alert | -11 -10 -10 ------- Run | Yrd Mat Sub Maximum Alert Level . | . . . Low Security (%) 100 | 100 100 . Level 1 . | . . . Level 2 . | . . . Level 3 . | . . . Level 4 . | . . . Level 5 . | . . . High Security . | . . . Max Security . | . . . Peak Influence 143 | 5 143 . Initial . | . . . Average 41 | . 54 . Influence Increases 200 | 5 195 . Destroy 0b10 Robot/C 100 | . 100 . Destroy 0b10 Robot/NC 5 | 5 . . Destroy Leader 30 | . 30 . Disable Machine 45 | . 45 . Destroy Structure 5 | . 5 . Lose Combat Pursuer 15 | . 15 . Influence Decreases 200 | 5 92 103 Entered New Map 51 | . . 51 Time Decay 147 | 5 92 50 Lost Part 2 | . . 2 Squads Dispatched 2 | . 2 . Investigation 1 | . 1 . Extermination . | . . . Reinforcement 1 | . 1 . Assault . | . . . Garrison . | . . . Intercept . | . . . Searches Triggered . | . . . Construction Impeded . | . . . Haulers Reinforced . | . . . Active Scanning Responses . | . . . Cargo Convoy Interrupts . | . . . Stealth | -11 -10 -10 --------- Run | Yrd Mat Sub Distress Signals . | . . . Communications Jammed . | . . . Distress Signals . | . . . Times Spotted 13 | . 8 5 Peak Tracking Total 4 | . 4 2 Tactical Retreats 1 | . 1 . Traps | -11 -10 -10 ------- Run | Yrd Mat Sub Traps Triggered 2 | . 2 . Indirectly . | . . . Trap Hack Attempts . | . . . Triggered . | . . . Disarmed . | . . . Reprogrammed . | . . . Reused . | . . . Traps Extracted . | . . . Installed . | . . . Triggered . | . . . Machines | -11 -10 -10 ---------- Run | Yrd Mat Sub Machines Disabled 3 | . 3 . Max in Single Turn 1 | . 1 . Machines Repaired . | . . . Machines Dismantled . | . . . Machines Sabotaged . | . . . Overloaded Fab Kills . | . . . Hacking | -11 -10 -10 --------- Run | Yrd Mat Sub Machines Accessed . | . . . Terminals . | . . . Fabricators . | . . . Repair Stations . | . . . Recycling Units . | . . . Scanalyzers . | . . . Garrison Access . | . . . Total Hacks . | . . . Successful . | . . . Failed . | . . . Catastrophic . | . . . Database Lockouts . | . . . Manual . | . . . Terminals . | . . . Fabricators . | . . . Repair Stations . | . . . Recycling Units . | . . . Scanalyzers . | . . . Garrison Access . | . . . Terminal Hacks . | . . . Fabricator Hacks . | . . . Repair Station Hacks . | . . . Recycling Unit Hacks . | . . . Scanalyzer . | . . . Garrison Access Hacks . | . . . Unauthorized Hacks . | . . . Terminals . | . . . Fabricators . | . . . Repair Stations . | . . . Recycling Units . | . . . Scanalyzers . | . . . Garrison Access . | . . . Data Cores Recovered . | . . . Used . | . . . Hacking Detections . | . . . Full Trace Events . | . . . Feedback Events . | . . . Feedback Blocked . | . . . Robot Schematics Acquired . | . . . Robots Built . | . . . Authchips . | . . . Time . | . . . Total Robot Build Rating . | . . . Part Schematics Acquired . | . . . Parts Built . | . . . Authchips . | . . . Time . | . . . Total Part Build Rating . | . . . Part Studies Acquired . | . . . Parts Repaired . | . . . Time . | . . . Parts Recycled . | . . . Recycled Matter . | . . . Retrieved Matter . | . . . Retrieved Components . | . . . Parts Scanalyzed . | . . . Part Schematics Acquired . | . . . Parts Damaged . | . . . Bothacking | -11 -10 -10 ------------ Run | Yrd Mat Sub Used RIF Installer . | . . . Robots Hacked . | . . . Non-combat . | . . . Combat . | . . . Robot Hacks Applied . | . . . Relay Couplers Released . | . . . Fabnet Peak Effective % . | . . . Robots Rewired . | . . . Allies Hacked . | . . . Hacks Repelled . | . . . Allies | -11 -10 -10 -------- Run | Yrd Mat Sub Total Allies . | . . . Largest Group . | . . . Highest-Rated Group . | . . . Highest-Rated Ally . | . . . Total Orders . | . . . Ally Attacks . | . . . Total Damage . | . . . Kills . | . . . Allies Corrupted . | . . . Allies Melted . | . . . Intel | -11 -10 -10 ------- Run | Yrd Mat Sub Active Infowar (turns) 618 | 22 341 255 Optics 110 | . . 110 Terrain 5 | 5 . . Seismic 503 | 17 341 145 Robot Analysis Total . | . . . Derelict Logs Recovered 1 | . . 1 Drone Launches . | . . . Drone Recoveries . | . . . Exploration | -11 -10 -10 ------------- Run | Yrd Mat Sub Turns Passed 747 | 108 341 298 Spaces Moved 433 | 55 214 164 Core 13 | 10 . 3 Treads 82 | . . 82 Legs 336 | 45 214 77 Wheels 2 | . . 2 Hover . | . . . Flight . | . . . Fastest Speed 50 | 50 120 100 Average Speed 128 | 120 120 142 Slowest Speed 200 | 150 120 200 Overloaded Moves . | . . . Propulsion Burnouts . | . . . Robots Hopped . | . . . Potential Cave-ins 4 | . 4 . Cave-ins Triggered . | . . . Exploration Rate (%) 20 | 3 44 15 Regions Visited 2 Branch Regions 1 Pre-discovered Areas . | . . . Known Exits Taken . | . . . Unknown Exits Taken 2 | 1 1 . Scrap Searched . | . . . Spaces Dug 6 | . 6 . Terrain Destroyed 9 | . 9 . Melee 6 | . 6 . Projectile . | . . . AOE 3 | . 3 . Terrain Rammed . | . . . Walls Destroyed . | . . . Machines Disabled . | . . . Actions | -11 -10 -10 --------- Run | Yrd Mat Sub Total 543 | 82 258 203 Wait 25 | . 13 12 Move 431 | 54 213 164 Hop . | . . . Pick Up 14 | 7 5 2 Fast Attach 9 | 7 . 2 Attach 7 | 1 2 4 Detach 2 | 1 . 1 Swap 1 | . . 1 Drop 4 | . 4 . Fire 41 | 10 14 17 Melee 7 | . 7 . Ram . | . . . Kick 2 | 2 . . Crush . | . . . Escape Stasis . | . . . Rewire . | . . . Trap . | . . . Miscellaneous . | . . . Route ------- -11/Scrapyard -10/Materials -10/Subcaves History --------- Turn | Location | Event 20 | -11/Scrapyard | Discovered new exit (range 16) 109 | -11/Scrapyard | Entered Materials 300 | -10/Materials | Build established: Mutant 315 | -10/Materials | Discovered new exit (range 8) 450 | -10/Materials | Entered Subcaves 451 | -10/Subcaves | Approached by a straggling Scientist 452 | -10/Subcaves | Learned 4 Materials zone layouts 578 | -10/Subcaves | Core integrity fell below 50% 600 | -10/Subcaves | Core integrity fell below 20% 626 | -10/Subcaves | Lost 6 parts (3n1u2w) 748 | -10/Subcaves | Destroyed by 4L-869(R) with Subdweller Machine Gun Last Messages --------------- 00598_ Integrated Corrupted Sub. Laser (+1). 00598_ Complication: FCS attempts to trigger Sub. Laser. 00598_ Complication: Sub. Laser misfires. 00608_ <|XY8OHLYFEEZBX,BWOJAKUNCLASMU850GYOH& 00611_ Subatomizers dissect the Sub. Power Source. 00612_ Destroyed Scrap Shield. 00616_ Sub. Power Source melted. 00616_ 2O-3TP(R) destroyed. 00621_ Acquired Scrap Shield Fragment. 00622_ Subatomizers dissect the Sub. Power Source. 00622_ Acquired 60 matter. 00632_ Acquired Sub. Monowheel. 00638_ Acquired Sub. Optics. [Achievement: Spot Them First] 00639_ Acquired 37 matter. 00651_ Subatomizers dissect the Lgt. Ion Engine. 00660_ System corrupted: FCS attempts to trigger Sub. Laser. 00660_ System corrupted: Sub. Laser misfires. 00698_ System corrupted: Substantial component data lost. 00717_ System corrupted: Component data lost. Map ----- +----------------------------------------------------+ | ?????????????????????????????????????????????????? | | ?????????????????????????????????????????????????? | | ?????????????????????????????????????????????????? | | ?????????????????????????????????????????????????? | | ?????????????????????????????????????????????????? | | ?????????????????????????????????????????????????? | | ?????????????????????????????????????????????????? | | ?????????????????????????????????????????????????? | | ?????????????????????????????????????????????????? | | ?????????????????????????????????????????????????? | | ?????????????????????????????????????????????????? | | ?????????????????????????????????????????????????? | | ?????????????????????????????????????????????????? | | ?????????????????????????????????????????????????? | | ?????????????????????????????????????????????????? | | ?????????????????????????????????????????????????? | | ?????????????????????????###?????????????????????? | | ???????????????????????### #?????????????????????? | | ??????????????????????## #?????????????????????? | | ?????????????????????## #?????????????????????? | | ?????????????????????# #?????????????????????? | | ?????????????????????# ##????########????????? | | ?????????????????????# ##??## ##??####?? | | ?????????????????????# ## #??# #### ### | | ?????????????????????#### ##### ## | | ????????????????????????#@ # | | ????????????????????????# ## | | ??????????????????# R #### | | ????????????? #R ##??### | | ??????????? ## ####?????## | | ??????????? ### ### #?????????## | | ??????????? ?????## ##?# #??????##### | | ??????????????????# ###??# ????### | | ??????????????????## ##????## #??## | | ???????????????????# ??????? #??# ## | | ??????????????????# ??????? #??# ### ## | | ??????????????????# ??????# ##??## #####? | | ??????????????????# ??????# #???# ### ## | | ??????????????????## ## ?????? #???## | | ???????????????????##?## ?????? #????##### ## # | | ???????????????????????##??????# ##????????###### | | ???????????????????????????????####??????????????? | | ?????????????????????????????????????????????????? | | ?????????????????????????????????????????????????? | | ?????????????????????????????????????????????????? | | ???????????????????????????????????????????#?????? | | ???????????????????????????????????????????# ????? | | ??????????????????????????????????????????## ???? | | ??????????????????????????????????????????# ### | | ??????????????????????????????????????????# | +----------------------------------------------------+ Best States ------------- Heat Dissipation 25 Energy Generation 15 Energy Capacity 250 Matter Stores 300 Matter Capacity 300 Sight Range 21 Terrain Scan Density 10 Evasion (%) 55 Recoil Reduction 2 Item Schematics ----------------- None Robot Schematics ------------------ None Fabricated ------------ Nothing Repaired ---------- Nothing Studied --------- None Alien Tech Used ----------------- None Achievements -------------- Spot Them First Challenges ------------ None Game ------ Seed MultinovaTrackerSpear Manual? 0 Play Time 00:11:48 Cumulative 46.1 hours Start 2026.02.12 @ 17:44:21 End 2026.03.01 @ 20:18:51 Sessions 2 Manual Loads 0 Difficulty Rogue Special Mode None Game No. 70 Rogue 70 Adventurer 0 Explorer 0 Win Type - Total 0 Types 0/0/0/0/0/0/0/0/0/0 Lore% 14 Gallery% 31 Achievement% 20 Wizard Run 0 Options --------- Layout 0 ASCII 0 Keyboard 0 Movement Numpad Keybinds 1 Fullscreen 1 Font 36/Smallcaps Map View 76x50 Zoom Use 0% Tactical HUD 1 Map Filters NONE Filters NONE Steam 1 RUN: e91c1efa-00f0-4d0f-87d1-381df9b464fb